bitfinex/quotes_BTCUSD_20241130
["timestamp","ask_amount","ask_price","bid_price","bid_amount"]
[1732930889557,0.11068489,96779.0,96778.0,0.21410975]
[1732930889558,0.00507061,96779.0,96778.0,0.21410975]
[1732930889763,0.00401734,96789.0,96778.0,0.21410975]
[1732930889972,0.103318,96788.0,96779.0,0.04795522]
[1732930890178,0.103318,96788.0,96778.0,0.16615453]
[1732930890179,0.103327,96781.0,96780.0,0.08484405]
[1732930890604,0.103324,96783.0,96780.0,0.08484405]
[1732930890805,0.0017314,96789.0,96781.0,0.08484405]
[1732930891019,0.103318,96788.0,96787.0,0.02950393]
[1732930891250,0.107318,96788.0,96787.0,0.11434798]
[1732930892629,0.103318,96788.0,96787.0,0.11434798]
[1732930892835,0.104318,96788.0,96787.0,0.11434798]
[1732930893235,0.104318,96788.0,96787.0,0.11429704]
[1732930893499,0.103318,96788.0,96787.0,0.11429704]
[1732930894310,0.103318,96788.0,96787.0,0.11529704]
[1732930895642,0.103318,96788.0,96787.0,0.11429704]
[1732930895887,0.103318,96788.0,96787.0,0.11629704]
[1732930896101,0.10560393,96788.0,96787.0,0.11629704]
[1732930896330,0.103318,96788.0,96787.0,0.08680084]
[1732930896598,0.103318,96788.0,96787.0,0.002]
[1732930896842,0.103318,96788.0,96787.0,0.08677381]
[1732930899910,0.103318,96788.0,96787.0,0.08477381]
[1732930900160,0.103318,96788.0,96787.0,0.08577381]
[1732930900392,0.103318,96788.0,96787.0,0.08576511]
[1732930900627,0.103318,96788.0,96787.0,0.08476511]
[1732930900814,0.103318,96788.0,96787.0,0.01842711]
[1732930901063,0.10560405,96788.0,96787.0,0.01842711]
[1732930902227,0.103328,96779.0,96778.0,0.0008657]
[1732930902466,0.103326,96781.0,96778.0,0.0008657]
[1732930902701,0.103328,96779.0,96778.0,0.0008657]
[1732930902958,0.206648,96783.0,96778.0,0.0008657]
[1732930903185,0.206649,96782.0,96778.0,0.0671999]
[1732930903430,0.206652,96781.0,96779.0,0.0294818]
[1732930903670,0.103327,96780.0,96779.0,0.0847584]
[1732930903907,0.103327,96780.0,96779.0,0.06633275]
[1732930904124,0.103327,96780.0,96779.0,0.02948116]
[1732930904473,0.103327,96780.0,96779.0,0.08475842]
[1732930904951,0.20845835,96780.0,96779.0,0.08475842]
[1732930905441,0.10513135,96780.0,96778.0,0.0038657]
[1732930905654,0.103327,96780.0,96779.0,0.08476116]
[1732930905880,0.103327,96780.0,96779.0,0.08962686]
[1732930906343,0.104327,96780.0,96779.0,0.08562686]
[1732930906524,0.103327,96780.0,96779.0,0.08562686]
[1732930907496,0.103327,96780.0,96779.0,0.08762686]
[1732930907719,0.10561324,96780.0,96779.0,0.08762686]
[1732930908877,0.10561324,96780.0,96779.0,0.06920348]
[1732930909089,0.20845845,96780.0,96779.0,0.11711421]
[1732930909309,0.20845845,96780.0,96779.0,0.08763053]
[1732930911610,0.20617221,96780.0,96779.0,0.08763053]
[1732930912377,0.20617221,96780.0,96779.0,0.11710776]
[1732930912596,0.103327,96780.0,96779.0,0.11710776]
[1732930912807,0.103327,96780.0,96779.0,0.08762575]
[1732930915681,0.20845837,96780.0,96779.0,0.08762575]
[1732930916192,0.20845837,96780.0,96779.0,0.11711133]
[1732930917086,0.20845837,96780.0,96779.0,0.08762575]
[1732930919244,0.35845837,96780.0,96779.0,0.08762575]
[1732930919464,0.35617221,96780.0,96779.0,0.08762575]
[1732930919956,0.36709227,96780.0,96779.0,0.08762575]
[1732930925008,0.36709227,96780.0,96779.0,0.08751056]
[1732930926405,0.11424706,96780.0,96779.0,0.08751056]
[1732930931757,0.11424706,96780.0,96779.0,0.08755217]
[1732930932416,0.01092006,96780.0,96779.0,0.08755217]
[1732930932892,0.15,96792.0,96779.0,0.08755217]
[1732930933135,0.10513139,96788.0,96779.0,0.0028657]
[1732930933382,0.0017314,96789.0,96788.0,0.229518]
[1732930933601,0.0017314,96789.0,96788.0,0.31421048]
[1732930934068,0.0017314,96789.0,96788.0,0.52084548]
[1732930934069,0.001,96789.0,96788.0,0.52084548]
[1732930934288,0.001,96789.0,96788.0,0.576073]
[1732930934507,0.01076228,96807.0,96800.0,0.103305]
[1732930934726,0.01076228,96807.0,96801.0,0.08469248]
[1732930934727,0.103299,96806.0,96801.0,0.08469248]
[1732930934997,0.206581,96815.0,96802.0,0.08469248]
[1732930935208,0.00228534,96823.0,96802.0,0.29129848]
[1732930935420,0.206577,96816.0,96804.0,0.103301]
[1732930935638,0.206568,96821.0,96809.0,0.02942921]
[1732930935639,0.103295,96810.0,96809.0,0.02942921]
[1732930935873,0.20614021,96810.0,96809.0,0.08469248]
[1732930937186,0.35842574,96810.0,96809.0,0.08469248]
[1732930937388,0.35614021,96810.0,96809.0,0.04986955]
[1732930939785,0.35914021,96810.0,96809.0,0.04786955]
[1732930940002,0.35614021,96810.0,96809.0,0.04786955]
[1732930940203,0.35914021,96810.0,96809.0,0.04786955]
[1732930940358,0.36114021,96810.0,96809.0,0.04786955]
[1732930940567,0.35814021,96810.0,96809.0,0.04786955]
[1732930940774,0.35814021,96810.0,96809.0,0.08459125]
[1732930941426,0.35987161,96810.0,96809.0,0.04786955]
[1732930941885,0.35987161,96810.0,96809.0,0.0845871]
[1732930943522,0.1070264,96810.0,96809.0,0.0845871]
[1732930943732,0.1050264,96810.0,96809.0,0.0845871]
[1732930943955,0.1050264,96810.0,96809.0,0.0855871]
[1732930944401,0.1050264,96810.0,96809.0,0.0845871]
[1732930944643,0.1050264,96810.0,96809.0,0.11401631]
[1732930944874,0.1050264,96810.0,96809.0,0.11701631]
[1732930945540,0.1050264,96810.0,96809.0,0.0875871]
[1732930945964,0.1050264,96810.0,96809.0,0.0845871]
[1732930947068,0.29265707,96810.0,96809.0,0.0845871]
[1732930947273,0.44037161,96810.0,96809.0,0.0855871]
[1732930952161,0.44037161,96810.0,96809.0,0.05603817]
[1732930952379,0.35787161,96810.0,96809.0,0.08539182]
[1732930953390,0.35787161,96810.0,96809.0,0.08439182]
[1732930953817,0.36887161,96810.0,96809.0,0.08439182]
[1732930954013,0.36087161,96810.0,96809.0,0.08439182]
[1732930954258,0.36187161,96810.0,96809.0,0.08439182]
[1732930955723,0.36187161,96810.0,96809.0,0.20559182]
[1732930955724,0.0027314,96810.0,96809.0,0.20559182]
[1732930955945,0.1060264,96810.0,96809.0,0.20559182]
[1732930956164,0.0017308,96818.0,96809.0,0.20559182]
[1732930956374,0.10519725,96818.0,96810.0,0.18768582]
[1732930956580,0.10519725,96818.0,96812.0,0.103292]
[1732930956782,0.00191025,96818.0,96813.0,0.08439182]
[1732930957006,0.00191025,96818.0,96810.0,0.206589]
[1732930957007,0.10519625,96818.0,96814.0,0.08439182]
[1732930957217,0.10519625,96818.0,96815.0,0.08439182]
[1732930957218,0.00191025,96818.0,96815.0,0.08439182]
[1732930957465,0.103288,96816.0,96810.0,0.103294]
[1732930957665,0.00191025,96818.0,96811.0,0.08444012]
[1732930957940,0.00191025,96818.0,96812.0,0.08444012]
[1732930958123,0.00191025,96818.0,96813.0,0.08444012]
[1732930958372,0.103289,96816.0,96814.0,0.08444012]
[1732930958515,0.103288,96817.0,96815.0,0.08444012]
[1732930958878,0.103289,96816.0,96811.0,0.103293]
[1732930959139,0.103287,96817.0,96816.0,0.02936883]
[1732930959368,0.00191025,96818.0,96812.0,0.05506662]
[1732930959369,0.10519725,96818.0,96812.0,0.103292]
[1732930959596,0.10519725,96818.0,96810.0,0.20659]
[1732930959597,0.00191025,96818.0,96813.0,0.104291]
[1732930960290,0.10519725,96818.0,96813.0,0.103291]
[1732930960504,0.10519725,96818.0,96816.0,0.001]
[1732930960726,0.10519725,96818.0,96817.0,0.08443944]
[1732930962460,0.10519725,96818.0,96817.0,0.08543944]
[1732930966272,0.10519725,96818.0,96817.0,0.0854525]
[1732930967602,0.10519725,96818.0,96817.0,0.001]
[1732930968727,0.10519725,96818.0,96817.0,0.03771428]
[1732930968937,0.10519725,96818.0,96817.0,0.08544258]
[1732930970994,0.10519725,96818.0,96817.0,0.001]
[1732930971221,0.10519725,96818.0,96817.0,0.08544184]
[1732930978643,0.00191025,96818.0,96817.0,0.08544184]
[1732930978860,0.10519625,96818.0,96817.0,0.08544184]
[1732930979802,0.12019625,96818.0,96817.0,0.08544184]
[1732930981249,0.22304146,96818.0,96817.0,0.08548653]
[1732930982118,0.22304146,96818.0,96817.0,0.11487936]
[1732930982336,0.22304146,96818.0,96817.0,0.08548653]
[1732930982578,0.37304146,96818.0,96817.0,0.08548653]
[1732930982996,0.37304146,96818.0,96817.0,0.08448653]
[1732930983205,0.103294,96811.0,96810.0,0.03026556]
[1732930983417,0.20613921,96811.0,96810.0,0.06702648]
[1732930983643,0.20613921,96811.0,96810.0,0.11481599]
[1732930983854,0.28213921,96811.0,96810.0,0.08541217]
[1732930984474,0.30513921,96811.0,96810.0,0.08541217]
[1732930985348,0.30713921,96811.0,96810.0,0.11481599]
[1732930985527,0.30713921,96811.0,96810.0,0.08541217]
[1732930986632,0.30713921,96811.0,96810.0,0.08538479]
[1732930988339,0.23113921,96811.0,96810.0,0.08538479]
[1732930988789,0.23113921,96811.0,96810.0,0.11478307]
[1732930989002,0.23113921,96811.0,96810.0,0.08538479]
[1732930989441,0.23113921,96811.0,96810.0,0.11477012]
[1732930989650,0.22913921,96811.0,96810.0,0.08538479]
[1732930989897,0.23113921,96811.0,96810.0,0.08538479]
[1732930994686,0.23113921,96811.0,96810.0,0.11476721]
[1732930994916,0.38113921,96811.0,96810.0,0.08538479]
[1732930995135,0.47083921,96811.0,96810.0,0.04863716]
[1732930995392,0.48198131,96811.0,96810.0,0.04863716]
[1732930995646,0.47998131,96811.0,96810.0,0.04863716]
[1732930995886,0.58281277,96811.0,96810.0,0.01923917]
[1732930996094,0.61971219,96811.0,96810.0,0.01923917]
[1732930996305,0.62171219,96811.0,96810.0,0.01923917]
[1732930996532,0.58481277,96811.0,96810.0,0.01923917]
[1732930996752,0.366004,96801.0,96800.0,0.00048281]
[1732930996968,0.46884921,96801.0,96800.0,0.00048281]
[1732930997824,0.45884921,96801.0,96800.0,0.00048281]
[1732930998678,0.47084921,96801.0,96800.0,0.00048281]
[1732930999311,0.253312,96794.0,96793.0,0.0008657]
[1732930999536,0.37915721,96794.0,96793.0,0.03021426]
[1732931000650,0.37915721,96794.0,96793.0,0.03020718]
[1732931001308,0.38415721,96794.0,96793.0,0.03020718]
[1732931001554,0.38615721,96794.0,96793.0,0.03020165]
[1732931002473,0.38615721,96794.0,96793.0,0.0008657]
[1732931002705,0.38615721,96794.0,96793.0,0.02999761]
[1732931003891,0.38615721,96794.0,96793.0,0.02999538]
[1732931004964,0.38615721,96794.0,96793.0,0.15459538]
[1732931004965,0.007,96794.0,96793.0,0.15459538]
[1732931005195,0.007,96794.0,96793.0,0.19100428]
[1732931005196,0.110312,96794.0,96793.0,0.19100428]
[1732931005861,0.108312,96794.0,96793.0,0.19100428]
[1732931006757,0.23615721,96794.0,96793.0,0.06640428]
[1732931006994,0.23615721,96794.0,96793.0,0.0955435]
[1732931007211,0.23115721,96794.0,96793.0,0.09556778]
[1732931007703,0.23115721,96794.0,96793.0,0.0664285]
[1732931008145,0.22915721,96794.0,96793.0,0.0664285]
[1732931008388,0.22915721,96794.0,96793.0,0.09556778]
[1732931008621,0.22915721,96794.0,96793.0,0.08664952]
[1732931008860,0.22915721,96794.0,96793.0,0.08564952]
[1732931009080,0.22915721,96794.0,96793.0,0.08464952]
[1732931009293,0.22915721,96794.0,96793.0,0.08564952]
[1732931010459,0.37915721,96794.0,96793.0,0.08564952]
[1732931011548,0.37915721,96794.0,96793.0,0.04922567]
[1732931012076,0.37915721,96794.0,96793.0,0.0008657]
[1732931012308,0.37915721,96794.0,96793.0,0.04826683]
[1732931012503,0.38215721,96794.0,96793.0,0.04826683]
[1732931013874,0.38915721,96794.0,96793.0,0.04826683]
[1732931014078,0.38915721,96794.0,96793.0,0.04826181]
[1732931014318,0.42036546,96794.0,96793.0,0.04826181]
[1732931017792,0.42036546,96794.0,96793.0,0.07742402]
[1732931018033,0.42036546,96794.0,96793.0,0.04825713]
[1732931021065,0.43036546,96794.0,96793.0,1.3e-07]
[1732931021222,0.51176546,96794.0,96793.0,1.3e-07]
[1732931021832,0.02087812,96794.0,96780.0,0.06733156]
[1732931022087,0.01,96794.0,96781.0,0.03647173]
[1732931022299,0.103324,96782.0,96781.0,0.19413607]
[1732931022502,0.103324,96782.0,96781.0,0.16497173]
[1732931022699,0.01,96794.0,96781.0,0.16478034]
[1732931022700,0.103324,96783.0,96781.0,0.16478034]
[1732931022897,0.103322,96785.0,96782.0,0.02902418]
[1732931023157,0.206632,96790.0,96782.0,0.06530452]
[1732931023363,0.01,96794.0,96783.0,0.03628034]
[1732931023364,0.007,96794.0,96783.0,0.03628034]
[1732931023570,0.00228546,96817.0,96783.0,0.03628034]
[1732931023710,0.0031112,96794.0,96783.0,0.03628034]
[1732931023925,0.103322,96784.0,96783.0,0.03628034]
[1732931024141,0.206636,96789.0,96783.0,0.03628638]
[1732931024348,0.103322,96784.0,96782.0,0.0028654]
[1732931024556,0.00541617,96783.0,96782.0,0.0028654]
[1732931024770,0.103323,96783.0,96782.0,0.0028654]
[1732931024983,0.0994288,96783.0,96782.0,0.03716046]
[1732931025200,0.0054725,96783.0,96782.0,0.03716046]
[1732931025397,0.1087955,96783.0,96782.0,0.03716046]
[1732931026518,0.0054725,96783.0,96782.0,0.03716046]
[1732931026921,0.0054725,96783.0,96782.0,0.03916046]
[1732931026922,0.1097955,96783.0,96782.0,0.03916046]
[1732931027315,0.1097955,96783.0,96782.0,0.04416046]
[1732931027772,0.1097955,96783.0,96782.0,0.04414983]
[1732931028757,0.10931269,96783.0,96782.0,0.04414983]
[1732931028964,0.00598969,96783.0,96782.0,0.04414983]
[1732931029359,0.001,96783.0,96782.0,0.14747383]
[1732931029984,0.00639203,96783.0,96782.0,0.14747383]
[1732931030188,0.001,96783.0,96782.0,0.14747383]
[1732931031044,0.001,96783.0,96782.0,0.17649469]
[1732931031482,0.001,96783.0,96782.0,0.3643399]
[1732931031698,0.0001112,96794.0,96793.0,0.103313]
[1732931031924,0.0001112,96794.0,96793.0,0.22331721]
[1732931032630,0.0001112,96794.0,96793.0,0.12000421]
[1732931032841,0.0001112,96794.0,96793.0,0.22331721]
[1732931033064,0.0001112,96794.0,96793.0,0.2414456]
[1732931033311,0.0001112,96794.0,96793.0,0.1381326]
[1732931033520,0.1034232,96794.0,96793.0,0.1381326]
[1732931033749,0.1054232,96794.0,96793.0,0.1541326]
[1732931033978,0.1044232,96794.0,96793.0,0.14507507]
[1732931034196,0.1054232,96794.0,96793.0,0.15407507]
[1732931034412,0.1054232,96794.0,96793.0,0.14507507]
[1732931034628,0.1044232,96794.0,96793.0,0.13807507]
[1732931034880,0.1054232,96794.0,96793.0,0.09237615]
[1732931035118,0.1044232,96794.0,96793.0,0.08337615]
[1732931035566,0.1044232,96794.0,96782.0,0.0758654]
[1732931035567,0.103323,96783.0,96782.0,0.0008654]
[1732931036542,0.22916821,96783.0,96782.0,0.0008654]
[1732931036992,0.22916821,96783.0,96782.0,0.0068654]
[1732931037207,0.23016821,96783.0,96782.0,0.0098654]
[1732931037419,0.23016821,96783.0,96782.0,0.0038654]
[1732931038062,0.206644,96785.0,96782.0,0.0018654]
[1732931038282,0.103323,96783.0,96782.0,0.0038654]
[1732931039634,0.20845429,96783.0,96782.0,0.0038654]
[1732931039874,0.35845429,96783.0,96782.0,0.0038654]
[1732931040081,0.35616821,96783.0,96782.0,0.0028654]
[1732931040292,0.45606821,96783.0,96782.0,0.0038654]
[1732931041208,0.45606821,96783.0,96782.0,0.0008654]
[1732931041642,0.45706821,96783.0,96782.0,0.0008654]
[1732931041851,0.45606821,96783.0,96782.0,0.0008654]
[1732931042297,0.45806821,96783.0,96782.0,0.0008654]
[1732931043407,0.38116821,96783.0,96782.0,0.0008654]
[1732931043629,0.38116821,96783.0,96782.0,0.03669963]
[1732931045719,0.38116821,96783.0,96782.0,0.06536314]
[1732931046621,0.40141476,96783.0,96782.0,0.02952891]
[1732931047078,0.40141476,96783.0,96782.0,0.02952694]
[1732931047532,0.40141476,96783.0,96782.0,0.04743864]
[1732931048215,0.40141476,96783.0,96782.0,0.08326163]
[1732931048720,0.40314616,96783.0,96782.0,0.08326163]
[1732931050522,0.40314616,96783.0,96782.0,0.08324012]
[1732931055273,0.40314616,96783.0,96782.0,0.04742486]
[1732931061201,0.71311616,96783.0,96782.0,0.04742486]
[1732931062785,0.69011616,96783.0,96782.0,0.04742486]
[1732931063009,0.69011616,96783.0,96782.0,0.08313243]
[1732931063888,0.69011616,96783.0,96782.0,0.03660066]
[1732931064232,0.69011616,96783.0,96782.0,0.0830561]
[1732931064333,0.71311616,96783.0,96782.0,0.0830561]
[1732931066619,0.71311616,96783.0,96782.0,0.11164457]
[1732931067293,0.71311616,96783.0,96782.0,0.09394314]
[1732931067516,0.71311616,96783.0,96782.0,0.11184247]
[1732931067739,0.71311616,96783.0,96782.0,0.08320293]
[1732931067978,0.71311616,96783.0,96782.0,0.08322392]
[1732931070791,0.71311616,96783.0,96782.0,0.08325505]
[1732931072585,0.74410933,96783.0,96782.0,0.08325505]
[1732931077416,0.84694079,96783.0,96782.0,0.08325505]
[1732931077664,0.74410933,96783.0,96782.0,0.08327506]
[1732931077897,0.75410933,96783.0,96782.0,0.08327506]
[1732931078776,0.75610933,96783.0,96782.0,0.08327506]
[1732931079207,0.75410933,96783.0,96782.0,0.08327506]
[1732931079422,0.75610933,96783.0,96782.0,0.08327506]
[1732931079913,0.75810933,96783.0,96782.0,0.08427506]
[1732931080154,0.75810933,96783.0,96782.0,0.08327506]
[1732931080373,0.77210933,96783.0,96782.0,0.08427506]
[1732931081047,0.77210933,96783.0,96782.0,0.0842564]
[1732931081513,0.76710933,96783.0,96782.0,0.0842564]
[1732931081726,0.77210933,96783.0,96782.0,0.0842564]
[1732931082615,0.95655898,96783.0,96782.0,0.0842564]
[1732931083507,0.77210933,96783.0,96782.0,0.0842564]
[1732931085500,0.76210933,96783.0,96782.0,0.0842564]
[1732931086351,0.94684704,96783.0,96782.0,0.0842564]
[1732931086995,0.71086961,96783.0,96782.0,0.0842564]
[1732931087633,0.71086961,96783.0,96782.0,0.0832564]
[1732931087634,0.52286961,96783.0,96782.0,0.0832564]
[1732931087853,0.52286961,96783.0,96782.0,0.2094564]
[1732931087854,0.4150244,96783.0,96782.0,0.2094564]
[1732931088082,0.36849037,96783.0,96782.0,0.2094564]
[1732931088821,0.37249037,96783.0,96782.0,0.2094564]
[1732931089039,0.38049037,96783.0,96782.0,0.2104564]
[1732931089263,0.36849037,96783.0,96782.0,0.2094564]
[1732931089697,0.36949037,96783.0,96782.0,0.2094564]
[1732931091287,0.36949037,96783.0,96782.0,0.20823194]
[1732931094987,0.37122177,96783.0,96782.0,0.20823194]
[1732931095427,0.47406698,96783.0,96782.0,0.16183194]
[1732931098193,0.47406698,96783.0,96782.0,0.16174581]
[1732931099099,0.47406698,96783.0,96782.0,0.08194581]
[1732931099329,0.62406698,96783.0,96782.0,0.08194581]
[1732931106105,0.47406698,96783.0,96782.0,0.08194581]
[1732931106313,0.47406698,96783.0,96782.0,0.16284581]
[1732931106957,0.49706698,96783.0,96782.0,0.16284581]
[1732931113109,0.26789877,96783.0,96782.0,0.26616981]
[1732931113321,0.26789877,96783.0,96782.0,0.31476981]
[1732931113577,0.22136504,96783.0,96782.0,0.31476981]
[1732931113778,0.22136504,96783.0,96782.0,0.31409312]
[1732931114465,0.22136504,96783.0,96782.0,0.36654179]
[1732931114705,0.22136504,96783.0,96782.0,0.29013807]
[1732931114905,0.22136504,96783.0,96782.0,0.3251024]
[1732931115156,0.22136504,96783.0,96782.0,0.35307364]
[1732931115565,0.22036504,96783.0,96782.0,0.35307364]
[1732931115784,0.22036504,96783.0,96782.0,0.37055552]
[1732931116024,0.22136504,96783.0,96782.0,0.37755552]
[1732931116271,0.22036504,96783.0,96782.0,0.37055552]
[1732931116702,0.22136504,96783.0,96782.0,0.37955552]
[1732931116942,0.22136504,96783.0,96782.0,0.27623152]
[1732931117148,0.22136504,96783.0,96782.0,0.37555552]
[1732931117423,0.22136504,96783.0,96782.0,0.27723152]
[1732931117649,0.32468804,96783.0,96782.0,0.27723152]
[1732931118384,0.22136504,96783.0,96782.0,0.27723152]
[1732931118600,0.32468804,96783.0,96782.0,0.2772321]
[1732931119307,0.22136504,96783.0,96782.0,0.2772321]
[1732931120214,0.22136504,96783.0,96782.0,0.3805561]
[1732931120430,0.15674387,96783.0,96782.0,0.3805561]
[1732931121533,0.15674387,96783.0,96782.0,0.32810743]
[1732931121985,0.15674387,96783.0,96782.0,0.3805561]
[1732931122215,0.15674387,96783.0,96782.0,0.32810743]
[1732931122435,0.15674387,96783.0,96782.0,0.3805561]
[1732931122645,0.15674387,96783.0,96782.0,0.32810743]
[1732931122858,0.15674387,96783.0,96782.0,0.3805561]
[1732931123037,0.15674387,96783.0,96782.0,0.32810743]
[1732931123289,0.15674387,96783.0,96782.0,0.3805561]
[1732931123523,0.15674387,96783.0,96782.0,0.32810743]
[1732931123728,0.15674387,96783.0,96782.0,0.3805561]
[1732931126309,0.15674387,96783.0,96782.0,0.32810743]
[1732931128476,0.11021785,96783.0,96782.0,0.32810743]
[1732931129992,0.11021785,96783.0,96782.0,0.43095264]
[1732931130208,0.11021785,96783.0,96782.0,0.44095264]
[1732931130391,0.04560782,96783.0,96782.0,0.49340131]
[1732931130574,0.04560782,96783.0,96782.0,0.44095264]
[1732931130950,0.0027314,96783.0,96782.0,0.44095264]
[1732931131752,0.00010789,96792.0,96791.0,0.246815]
[1732931131954,0.00010789,96792.0,96791.0,0.43007824]
[1732931132795,0.00010789,96792.0,96791.0,0.58307824]
[1732931133279,0.00910789,96792.0,96791.0,0.58407824]
[1732931133532,0.00910789,96792.0,96791.0,0.58107824]
[1732931133744,0.01610789,96792.0,96791.0,0.58207824]
[1732931134670,0.016,96792.0,96791.0,0.58207824]
[1732931134908,0.016,96792.0,96791.0,0.58049709]
[1732931135353,0.0018426,96794.0,96793.0,0.123313]
[1732931135563,0.0018426,96794.0,96793.0,0.53299509]
[1732931136644,0.0028426,96794.0,96793.0,0.53299509]
[1732931136857,0.0108426,96794.0,96793.0,0.53399509]
[1732931138463,0.0108426,96794.0,96793.0,0.58129509]
[1732931138697,0.0051574,96794.0,96793.0,0.63374376]
[1732931139405,0.0017308,96810.0,96809.0,0.113296]
[1732931139642,0.00179071,96810.0,96809.0,0.58027809]
[1732931139857,5.991e-05,96811.0,96810.0,0.398595]
[1732931140085,5.991e-05,96811.0,96810.0,0.58027709]
[1732931140302,5.991e-05,96811.0,96810.0,0.63272576]
[1732931140529,0.103264,96839.0,96830.0,0.103272]
[1732931140757,0.103266,96838.0,96831.0,0.07743004]
[1732931141174,0.206528,96840.0,96832.0,0.07743004]
[1732931141427,0.103266,96837.0,96833.0,0.06059765]
[1732931141664,0.103266,96837.0,96834.0,0.03366552]
[1732931141901,0.103265,96838.0,96835.0,0.07743004]
[1732931142137,0.103265,96838.0,96831.0,0.103272]
[1732931142138,0.103265,96838.0,96836.0,0.07743004]
[1732931142372,0.103265,96838.0,96837.0,0.07743004]
[1732931142596,0.0017322,96841.0,96837.0,0.07743004]
[1732931142835,0.0017322,96841.0,96838.0,0.07743004]
[1732931143067,0.103263,96840.0,96839.0,0.07743004]
[1732931143865,0.103265,96838.0,96837.0,0.003]
[1732931144283,0.10386426,96838.0,96837.0,0.003]
[1732931144711,0.23056426,96838.0,96837.0,0.08038559]
[1732931145558,0.23056426,96838.0,96837.0,0.08238559]
[1732931146012,0.33340947,96838.0,96837.0,0.08238559]
[1732931146241,0.33340947,96838.0,96837.0,0.11603327]
[1732931146483,0.33340947,96838.0,96837.0,0.11903327]
[1732931146942,0.33340947,96838.0,96837.0,0.11603327]
[1732931147417,0.33440947,96838.0,96837.0,0.11103327]
[1732931147638,0.33440947,96838.0,96837.0,0.11203327]
[1732931147862,0.33440947,96838.0,96837.0,0.11103327]
[1732931148484,0.33440947,96838.0,96837.0,0.13795142]
[1732931148485,0.33340947,96838.0,96837.0,0.13795142]
[1732931149021,0.33440947,96838.0,96837.0,0.13795142]
[1732931150154,0.33440947,96838.0,96818.0,0.0009842]
[1732931150155,0.103285,96819.0,96818.0,0.0009842]
[1732931150415,0.33363021,96819.0,96818.0,0.0009842]
[1732931150642,0.103308,96797.0,96796.0,0.0832]
[1732931150869,0.103315,96791.0,96790.0,0.0832]
[1732931151311,0.206628,96793.0,96790.0,0.0832]
[1732931151545,0.206609,96801.0,96790.0,0.0832]
[1732931151775,0.00544949,96792.0,96790.0,0.0832]
[1732931151988,0.206611,96800.0,96790.0,0.08325991]
[1732931151989,0.20662,96796.0,96790.0,0.08325991]
[1732931152215,0.00544948,96791.0,96790.0,0.08325991]
[1732931152460,0.206598,96807.0,96790.0,0.08325991]
[1732931152687,0.00544948,96791.0,96790.0,0.09225991]
[1732931152935,0.206608,96802.0,96790.0,0.08325991]
[1732931152936,0.206609,96801.0,96790.0,0.08325991]
[1732931153160,0.0054495,96791.0,96790.0,0.08825991]
[1732931153392,0.10331,96796.0,96790.0,0.09725991]
[1732931153620,0.00539639,96791.0,96790.0,0.09725991]
[1732931153889,0.1275,96796.0,96790.0,0.00905991]
[1732931154114,0.103315,96791.0,96790.0,0.00905991]
[1732931154359,0.103315,96791.0,96790.0,0.01505991]
[1732931154572,0.10871865,96791.0,96790.0,0.01505991]
[1732931154811,0.21156386,96791.0,96790.0,0.01505991]
[1732931155029,0.21156386,96791.0,96790.0,0.00605991]
[1732931155255,0.36156386,96791.0,96790.0,5.991e-05]
[1732931155498,0.36156386,96791.0,96790.0,0.00905991]
[1732931155704,0.36156386,96791.0,96790.0,5.991e-05]
[1732931156154,0.36456386,96791.0,96790.0,5.991e-05]
[1732931156480,0.399023,96783.0,96782.0,4e-07]
[1732931156689,0.399023,96783.0,96778.0,0.0008657]
[1732931156690,0.276327,96780.0,96778.0,0.0008657]
[1732931156894,0.37917221,96780.0,96778.0,0.0008657]
[1732931157112,0.38448317,96780.0,96778.0,0.0008657]
[1732931159511,0.38648317,96780.0,96778.0,0.0008657]
[1732931159718,0.39048317,96780.0,96778.0,0.0008657]
[1732931159932,0.40717538,96780.0,96778.0,0.0008657]
[1732931163940,0.41832166,96780.0,96779.0,0.00075781]
[1732931164174,0.29830245,96780.0,96778.0,5.1e-07]
[1732931164422,0.27633,96777.0,96776.0,1e-07]
[1732931164640,0.47416793,96777.0,96776.0,1e-07]
[1732931164879,0.47932044,96777.0,96776.0,1e-07]
[1732931165813,0.38832772,96777.0,96776.0,0.0010001]
[1732931166248,0.39032772,96777.0,96776.0,1e-07]
[1732931167380,0.47042772,96777.0,96776.0,1e-07]
[1732931168513,0.47042772,96777.0,96751.0,0.0002]
[1732931168514,0.103357,96752.0,96751.0,1e-06]
[1732931168728,0.15,96742.0,96740.0,0.00114512]
[1732931168940,0.1994,96751.0,96740.0,0.00114512]
[1732931168941,0.38150065,96741.0,96740.0,0.00114512]
[1732931169168,0.46005807,96741.0,96740.0,0.00114512]
[1732931169413,0.35669007,96741.0,96727.0,0.00020313]
[1732931169665,0.276378,96732.0,96727.0,0.00020313]
[1732931169907,0.50872321,96732.0,96731.0,0.00079782]
[1732931170122,0.51454577,96732.0,96731.0,0.00079782]
[1732931171031,0.51454577,96732.0,96711.0,0.0002]
[1732931171032,0.103397,96714.0,96711.0,0.0002]
[1732931171265,0.37924221,96714.0,96713.0,0.04225716]
[1732931171475,0.39536329,96714.0,96713.0,0.01679186]
[1732931171711,0.39536329,96714.0,96713.0,0.01678766]
[1732931171980,0.38502359,96714.0,96713.0,0.01678766]
[1732931172227,0.38802359,96714.0,96713.0,0.01678766]
[1732931172464,0.38802359,96714.0,96713.0,0.04225936]
[1732931172695,0.38902359,96714.0,96713.0,0.04225936]
[1732931173373,0.38902359,96714.0,96713.0,0.07410077]
[1732931173621,0.51827258,96714.0,96713.0,0.04226085]
[1732931174066,0.48996195,96714.0,96713.0,0.04226085]
[1732931174278,0.48996195,96714.0,96713.0,0.02547319]
[1732931174507,0.103415,96697.0,96696.0,0.02531318]
[1732931174748,0.38154853,96697.0,96696.0,0.0326929]
[1732931174980,0.3850067,96697.0,96696.0,0.0326929]
[1732931175438,0.48555457,96697.0,96696.0,0.0326929]
[1732931175664,0.4344067,96697.0,96696.0,0.0326929]
[1732931175926,0.43800489,96697.0,96696.0,0.00460842]
[1732931176149,0.43789595,96697.0,96696.0,0.00460842]
[1732931176369,0.10342,96693.0,96679.0,0.0008656]
[1732931176601,0.38155376,96693.0,96679.0,0.0008656]
[1732931176845,0.38478052,96693.0,96679.0,0.0008656]
[1732931178221,0.38478052,96693.0,96600.0,0.30958192]
[1732931178466,0.38478052,96693.0,96599.0,0.12652]
[1732931178467,7.51926663,96600.0,96599.0,0.12652]
[1732931178711,6.8411515,96600.0,96599.0,2.31436521]
[1732931178949,6.63726607,96600.0,96599.0,2.31436521]
[1732931179184,6.63726607,96600.0,96599.0,2.35577521]
[1732931179185,6.64278138,96600.0,96599.0,2.35577521]
[1732931179401,6.53809836,96600.0,96599.0,2.09527521]
[1732931179664,6.53809836,96600.0,96599.0,2.1251817]
[1732931179855,6.53869581,96600.0,96599.0,2.3806817]
[1732931180752,6.53869581,96600.0,96599.0,2.4011103]
[1732931181221,6.54769581,96600.0,96599.0,2.4021103]